[Event "*** Titled Tuesday Blitz"]
[Site "Chess.com"]
[Date "2020.11.10"]
[Round "1"]
[White "dropstoneDP"]
[Black "TokChess"]
[Result "1-0"]
[WhiteElo "2909"]
[BlackElo "2453"]
[TimeControl "180+1"]
[EndTime "10:08:08 PST"]
[Termination "dropstoneDP won by resignation"]

1. d4 {[%clk 0:02:56.9]} 1... Nf6 {[%clk 0:02:58.9]} 2. Bf4 {[%clk 0:02:50.8]}
2... d5 {[%clk 0:02:45.7]} 3. e3 {[%clk 0:02:47.4]} 3... e6 {[%clk 0:02:39.7]}
4. Nf3 {[%clk 0:02:41.1]} 4... Bd6 {[%clk 0:02:38.8]} 5. Nbd2 {[%clk 0:02:39.5]}
5... c5 {[%clk 0:02:34.2]} 6. c3 {[%clk 0:02:38.8]} 6... O-O {[%clk 0:02:33.7]}
7. Bd3 {[%clk 0:02:35.6]} 7... Qc7 {[%clk 0:02:33.9]} 8. Bxd6 {[%clk 0:02:31.6]}
8... Qxd6 {[%clk 0:02:32.6]} 9. e4 {[%clk 0:02:20.1]} 9... dxe4 {[%clk
0:02:28.7]} 10. Nxe4 {[%clk 0:02:19.9]} 10... Nxe4 {[%clk 0:02:29.6]} 11. Bxe4
{[%clk 0:02:20.4]} 11... Nd7 {[%clk 0:02:22.6]} 12. Qe2 {[%clk 0:01:36]} 12...
Nf6 {[%clk 0:02:17.6]} 13. dxc5 {[%clk 0:01:33.7]} 13... Qxc5 {[%clk 0:02:16.5]}
14. O-O-O {[%clk 0:01:25.7]} 14... Bd7 {[%clk 0:01:52]} 15. Ne5 {[%clk
0:00:55.8]} 15... Bb5 {[%clk 0:01:23.4]} 16. Bd3 {[%clk 0:00:55.7]} 16... Bxd3
{[%clk 0:01:11.1]} 17. Rxd3 {[%clk 0:00:56.6]} 17... Rfd8 {[%clk 0:01:11.2]} 18.
Rhd1 {[%clk 0:00:55.6]} 18... Rxd3 {[%clk 0:01:10.9]} 19. Qxd3 {[%clk 0:00:47]}
19... h6 {[%clk 0:00:56.9]} 20. f4 {[%clk 0:00:42.7]} 20... Rc8 {[%clk
0:00:48.4]} 21. Kb1 {[%clk 0:00:37.4]} 21... b5 {[%clk 0:00:43.3]} 22. g4 {[%clk
0:00:28.7]} 22... b4 {[%clk 0:00:39.4]} 23. c4 {[%clk 0:00:26.8]} 23... Qf2
{[%clk 0:00:18.3]} 24. g5 {[%clk 0:00:17.3]} 24... hxg5 {[%clk 0:00:15.1]} 25.
fxg5 {[%clk 0:00:17.3]} 25... Nh5 {[%clk 0:00:15.6]} 26. g6 {[%clk 0:00:17.1]}
26... fxg6 {[%clk 0:00:11.7]} 27. Qxg6 {[%clk 0:00:17.1]} 27... Qf5+ {[%clk
0:00:10.7]} 28. Qxf5 {[%clk 0:00:16.3]} 28... exf5 {[%clk 0:00:11.2]} 29. Rd7
{[%clk 0:00:13.4]} 29... Rf8 {[%clk 0:00:09.6]} 30. Rxa7 {[%clk 0:00:11.8]}
30... f4 {[%clk 0:00:09.9]} 31. Nf3 {[%clk 0:00:11.9]} 31... Nf6 {[%clk
0:00:10.4]} 32. Kc2 {[%clk 0:00:10.9]} 32... Ne4 {[%clk 0:00:08.9]} 33. Re7
{[%clk 0:00:08.4]} 33... Nd6 {[%clk 0:00:08]} 34. Kd3 {[%clk 0:00:05]} 34... Rd8
{[%clk 0:00:06.9]} 35. Re5 {[%clk 0:00:05.2]} 35... Ra8 {[%clk 0:00:06.7]} 36.
Rd5 {[%clk 0:00:04.7]} 36... Ne8 {[%clk 0:00:05.5]} 37. Rb5 {[%clk 0:00:03.1]}
37... Rxa2 {[%clk 0:00:04.8]} 38. Rxb4 {[%clk 0:00:03.7]} 38... Nf6 {[%clk
0:00:05.3]} 39. Ng5 {[%clk 0:00:03.5]} 39... g6 {[%clk 0:00:05.1]} 40. Ke2
{[%clk 0:00:03.1]} 40... Kg7 {[%clk 0:00:05.4]} 41. Kf3 {[%clk 0:00:03.1]} 41...
Nh5 {[%clk 0:00:04.8]} 42. Ne6+ {[%clk 0:00:03.7]} 42... Kf6 {[%clk 0:00:04.9]}
43. Nxf4 {[%clk 0:00:04.4]} 43... Ng7 {[%clk 0:00:04.8]} 44. Rb6+ {[%clk
0:00:04.3]} 44... Kf5 {[%clk 0:00:05.3]} 45. Nxg6 {[%clk 0:00:04.8]} 45... Ne6
{[%clk 0:00:04.8]} 46. Ne7+ {[%clk 0:00:05.3]} 46... Ke5 {[%clk 0:00:05.1]} 47.
Nc6+ {[%clk 0:00:05.8]} 47... Kf5 {[%clk 0:00:04.8]} 48. Ke3 {[%clk 0:00:05.5]}
48... Ra1 {[%clk 0:00:04.6]} 49. Nd4+ {[%clk 0:00:05.9]} 49... Nxd4 {[%clk
0:00:03.3]} 50. Kxd4 {[%clk 0:00:06.8]} 50... Rd1+ {[%clk 0:00:03.7]} 51. Kc3
{[%clk 0:00:07.2]} 51... Rh1 {[%clk 0:00:04]} 52. Rh6 {[%clk 0:00:07]} 52... Rg1
{[%clk 0:00:04]} 53. Kb4 {[%clk 0:00:07.3]} 53... Ke5 {[%clk 0:00:04.6]} 54. Kb5
{[%clk 0:00:07.5]} 54... Rg2 {[%clk 0:00:05.2]} 55. b4 {[%clk 0:00:07.7]} 1-0

[Event "*** Titled Tuesday Blitz"]
[Site "Chess.com"]
[Date "2020.11.10"]
[Round "1"]
[White "Vanina1989"]
[Black "DinaBelenkaya"]
[Result "1-0"]
[WhiteElo "2641"]
[BlackElo "2322"]
[TimeControl "180+1"]
[EndTime "10:08:09 PST"]
[Termination "Vanina1989 won by resignation"]

1. d4 {[%clk 0:03:00.9]} 1... d5 {[%clk 0:02:50.3]} 2. c4 {[%clk 0:03:00.8]}
2... dxc4 {[%clk 0:02:48.9]} 3. Nf3 {[%clk 0:03:00.1]} 3... Nf6 {[%clk
0:02:41.7]} 4. e3 {[%clk 0:03:00.6]} 4... e6 {[%clk 0:02:42.6]} 5. Bxc4 {[%clk
0:03:00.7]} 5... a6 {[%clk 0:02:43.5]} 6. O-O {[%clk 0:03:01]} 6... c5 {[%clk
0:02:43.6]} 7. Qe2 {[%clk 0:03:00.3]} 7... b5 {[%clk 0:02:39.3]} 8. Bb3 {[%clk
0:03:00.5]} 8... Bb7 {[%clk 0:02:36.5]} 9. Rd1 {[%clk 0:02:59.6]} 9... Nbd7
{[%clk 0:02:35.2]} 10. a4 {[%clk 0:02:57.7]} 10... Qb8 {[%clk 0:02:31.1]} 11.
axb5 {[%clk 0:02:55.7]} 11... axb5 {[%clk 0:02:32]} 12. Rxa8 {[%clk 0:02:54.4]}
12... Bxa8 {[%clk 0:02:32.9]} 13. Nc3 {[%clk 0:02:49.1]} 13... b4 {[%clk
0:02:31.9]} 14. Nb5 {[%clk 0:02:44.8]} 14... Be7 {[%clk 0:02:32.1]} 15. Bc2
{[%clk 0:02:12]} 15... O-O {[%clk 0:02:30.1]} 16. dxc5 {[%clk 0:02:10.9]} 16...
Nxc5 {[%clk 0:02:28.5]} 17. Nbd4 {[%clk 0:02:10.4]} 17... b3 {[%clk 0:02:24.6]}
18. Bb1 {[%clk 0:02:10.2]} 18... Be4 {[%clk 0:02:20.5]} 19. Bxe4 {[%clk
0:02:08.2]} 19... Nfxe4 {[%clk 0:02:21.4]} 20. Bd2 {[%clk 0:02:05.9]} 20... Qb7
{[%clk 0:02:20]} 21. Be1 {[%clk 0:02:03.6]} 21... Ra8 {[%clk 0:02:18.4]} 22. h3
{[%clk 0:02:00]} 22... h6 {[%clk 0:02:16.2]} 23. Ne5 {[%clk 0:01:58]} 23... Bf6
{[%clk 0:02:12.9]} 24. Ng4 {[%clk 0:01:57.8]} 24... Be7 {[%clk 0:02:09.5]} 25.
Qf3 {[%clk 0:01:56]} 25... Ra2 {[%clk 0:01:50.2]} 26. Qe2 {[%clk 0:01:38.8]}
26... Na4 {[%clk 0:01:47.4]} 27. Rc1 {[%clk 0:01:28.5]} 27... Nxb2 {[%clk
0:01:41.9]} 28. f3 {[%clk 0:01:14.1]} 28... Na4 {[%clk 0:01:33.8]} 29. Qc4
{[%clk 0:01:09.9]} 29... Nec5 {[%clk 0:01:33.7]} 30. Rb1 {[%clk 0:01:06.4]}
30... Qd5 {[%clk 0:01:21.7]} 31. Qb5 {[%clk 0:01:04]} 31... b2 {[%clk
0:01:15.4]} 32. Nc6 {[%clk 0:00:36.3]} 32... Bf6 {[%clk 0:01:02.2]} 33. Qb8+
{[%clk 0:00:32.9]} 33... Kh7 {[%clk 0:01:01.5]} 34. Nb4 {[%clk 0:00:31.8]} 34...
Qb3 {[%clk 0:00:56.5]} 35. Nxf6+ {[%clk 0:00:28.2]} 35... gxf6 {[%clk
0:00:57.4]} 36. Qf8 {[%clk 0:00:28.1]} 36... Qxe3+ {[%clk 0:00:57.2]} 37. Bf2
{[%clk 0:00:27.5]} 37... Ra1 {[%clk 0:00:36.5]} 38. Qxf7+ {[%clk 0:00:25.6]}
38... Kh8 {[%clk 0:00:36]} 39. Bxe3 {[%clk 0:00:24.6]} 39... Rxb1+ {[%clk
0:00:35.7]} 40. Kh2 {[%clk 0:00:24.7]} 40... Rh1+ {[%clk 0:00:33.1]} 41. Kxh1
{[%clk 0:00:21.6]} 41... b1=Q+ {[%clk 0:00:34]} 42. Kh2 {[%clk 0:00:21.9]} 42...
Qxb4 {[%clk 0:00:21.8]} 43. Qxf6+ {[%clk 0:00:21.4]} 43... Kg8 {[%clk
0:00:19.9]} 44. Bd4 {[%clk 0:00:21.5]} 44... Qb8+ {[%clk 0:00:18]} 45. Be5
{[%clk 0:00:21.8]} 45... Qb7 {[%clk 0:00:18.1]} 46. Qh8+ {[%clk 0:00:19.8]}
46... Kf7 {[%clk 0:00:18.8]} 47. Qxh6 {[%clk 0:00:18.8]} 47... Ke8 {[%clk
0:00:19.5]} 48. Qh8+ {[%clk 0:00:17.9]} 48... Kd7 {[%clk 0:00:20.4]} 49. h4
{[%clk 0:00:18.3]} 49... Kc6 {[%clk 0:00:21.3]} 50. h5 {[%clk 0:00:18.4]} 50...
Kd5 {[%clk 0:00:22.2]} 51. Bf4 {[%clk 0:00:17.1]} 51... Qc6 {[%clk 0:00:23.1]}
52. Qe5+ {[%clk 0:00:16.5]} 52... Kc4 {[%clk 0:00:22.2]} 53. h6 {[%clk 0:00:17]}
53... Qd7 {[%clk 0:00:18.2]} 54. Qg7 {[%clk 0:00:16.9]} 54... Qd5 {[%clk
0:00:10.5]} 55. h7 {[%clk 0:00:16.2]} 55... Qh5+ {[%clk 0:00:10.9]} 56. Kg3
{[%clk 0:00:16.4]} 56... Nd3 {[%clk 0:00:03.5]} 57. h8=Q {[%clk 0:00:15.6]}
57... Qe5 {[%clk 0:00:03.7]} 58. Bxe5 {[%clk 0:00:15.2]} 1-0

[Event "*** Titled Tuesday Blitz"]
[Site "Chess.com"]
[Date "2020.11.10"]
[Round "1"]
[White "narutosmith"]
[Black "Fins0905"]
[Result "0-1"]
[WhiteElo "2310"]
[BlackElo "2631"]
[TimeControl "180+1"]
[EndTime "10:08:09 PST"]
[Termination "Fins0905 won on time"]

1. d4 {[%clk 0:03:00.2]} 1... d5 {[%clk 0:02:59.6]} 2. Bf4 {[%clk 0:02:59.9]}
2... c5 {[%clk 0:02:59.3]} 3. e3 {[%clk 0:03:00.1]} 3... cxd4 {[%clk 0:02:58.3]}
4. exd4 {[%clk 0:02:59.5]} 4... Nc6 {[%clk 0:02:57.7]} 5. c3 {[%clk 0:02:43.7]}
5... Bf5 {[%clk 0:02:55.4]} 6. Bd3 {[%clk 0:02:42]} 6... Bxd3 {[%clk 0:02:54.1]}
7. Qxd3 {[%clk 0:02:42.9]} 7... e6 {[%clk 0:02:54.3]} 8. Nf3 {[%clk 0:02:40.5]}
8... Bd6 {[%clk 0:02:54.1]} 9. Bxd6 {[%clk 0:02:39.3]} 9... Qxd6 {[%clk
0:02:55]} 10. O-O {[%clk 0:02:39.4]} 10... Nge7 {[%clk 0:02:50.7]} 11. Nbd2
{[%clk 0:02:39.1]} 11... O-O {[%clk 0:02:50]} 12. b4 {[%clk 0:02:38]} 12... Rac8
{[%clk 0:02:44.5]} 13. a4 {[%clk 0:02:31.7]} 13... Qc7 {[%clk 0:02:40.3]} 14.
Rfc1 {[%clk 0:02:26.7]} 14... Nf5 {[%clk 0:02:35.6]} 15. Nb3 {[%clk 0:02:25.9]}
15... Nd6 {[%clk 0:02:24.7]} 16. Nfd2 {[%clk 0:02:23.6]} 16... b6 {[%clk
0:02:18.6]} 17. a5 {[%clk 0:02:18.3]} 17... Qb7 {[%clk 0:02:09.9]} 18. axb6
{[%clk 0:02:15.8]} 18... axb6 {[%clk 0:02:09.6]} 19. Qa6 {[%clk 0:02:08.4]}
19... Ra8 {[%clk 0:01:40.2]} 20. Qxb7 {[%clk 0:01:55.8]} 20... Nxb7 {[%clk
0:01:41.1]} 21. Nf3 {[%clk 0:01:48.7]} 21... Nd6 {[%clk 0:01:33.1]} 22. Nfd2
{[%clk 0:01:37]} 22... Rfc8 {[%clk 0:01:27.3]} 23. Kf1 {[%clk 0:01:29.6]} 23...
Rxa1 {[%clk 0:01:12.9]} 24. Rxa1 {[%clk 0:01:25.3]} 24... Nb5 {[%clk 0:01:11.3]}
25. Ra6 {[%clk 0:01:20.8]} 25... Rb8 {[%clk 0:00:52.2]} 26. Nb1 {[%clk
0:01:17.7]} 26... Kf8 {[%clk 0:00:46.7]} 27. Ke2 {[%clk 0:01:17.3]} 27... Ke7
{[%clk 0:00:40.3]} 28. Kd3 {[%clk 0:01:17.6]} 28... Kd7 {[%clk 0:00:31.3]} 29.
Na3 {[%clk 0:01:14]} 29... Nc7 {[%clk 0:00:25.6]} 30. Ra4 {[%clk 0:01:08.9]}
30... b5 {[%clk 0:00:24.6]} 31. Nc5+ {[%clk 0:01:01.9]} 31... Kd6 {[%clk
0:00:21.9]} 32. Nxb5+ {[%clk 0:00:51.1]} 32... Rxb5 {[%clk 0:00:19.2]} 33. f4
{[%clk 0:00:48.6]} 33... f6 {[%clk 0:00:18.8]} 34. Ra1 {[%clk 0:00:45.8]} 34...
e5 {[%clk 0:00:18.6]} 35. fxe5+ {[%clk 0:00:45.8]} 35... fxe5 {[%clk 0:00:19.5]}
36. Rf1 {[%clk 0:00:45.5]} 36... exd4 {[%clk 0:00:18.5]} 37. Rf7 {[%clk
0:00:43.6]} 37... Nb8 {[%clk 0:00:14.1]} 38. Rxg7 {[%clk 0:00:36.4]} 38... dxc3
{[%clk 0:00:14]} 39. Kxc3 {[%clk 0:00:36.6]} 39... Nba6 {[%clk 0:00:09]} 40. Nd3
{[%clk 0:00:23.4]} 40... Ne6 {[%clk 0:00:05.4]} 41. Rxh7 {[%clk 0:00:22.5]}
41... Rb8 {[%clk 0:00:05]} 42. g4 {[%clk 0:00:18.4]} 42... Rc8+ {[%clk
0:00:05.3]} 43. Kd2 {[%clk 0:00:18.5]} 43... Rc4 {[%clk 0:00:05.4]} 44. h3
{[%clk 0:00:17.5]} 44... Nxb4 {[%clk 0:00:05.4]} 45. Nxb4 {[%clk 0:00:16.9]}
45... Rxb4 {[%clk 0:00:06.3]} 46. Rh6 {[%clk 0:00:15.9]} 46... Ke5 {[%clk
0:00:06.5]} 47. Rh5+ {[%clk 0:00:14.8]} 47... Ke4 {[%clk 0:00:06.5]} 48. Rf5
{[%clk 0:00:14]} 48... d4 {[%clk 0:00:06]} 49. h4 {[%clk 0:00:13.5]} 49... Rb2+
{[%clk 0:00:05.9]} 50. Kd1 {[%clk 0:00:12.8]} 50... Rg2 {[%clk 0:00:06.4]} 51.
Rf6 {[%clk 0:00:11.7]} 51... Nf4 {[%clk 0:00:06.1]} 52. g5 {[%clk 0:00:11.3]}
52... d3 {[%clk 0:00:06.5]} 53. Rf8 {[%clk 0:00:06.6]} 53... Ke3 {[%clk
0:00:05.4]} 54. Re8+ {[%clk 0:00:06.4]} 54... Kd4 {[%clk 0:00:05.5]} 55. Rd8+
{[%clk 0:00:04.6]} 55... Nd5 {[%clk 0:00:05.7]} 56. Rd6 {[%clk 0:00:02.2]} 56...
Rg4 {[%clk 0:00:05.5]} 57. Rh6 {[%clk 0:00:01.2]} 57... Nc3+ {[%clk 0:00:04.5]}
0-1

[Event "*** Titled Tuesday Blitz"]
[Site "Chess.com"]
[Date "2020.11.10"]
[Round "1"]
[White "Gabrielian_Artur"]
[Black "AsaHoffmann"]
[Result "1-0"]
[WhiteElo "2800"]
[BlackElo "2401"]
[TimeControl "180+1"]
[EndTime "10:08:10 PST"]
[Termination "Gabrielian_Artur won on time"]

1. e4 {[%clk 0:03:00.9]} 1... d6 {[%clk 0:02:57]} 2. d4 {[%clk 0:03:00.3]} 2...
c6 {[%clk 0:02:55.4]} 3. Nf3 {[%clk 0:02:57.9]} 3... Bg4 {[%clk 0:02:51.8]} 4.
h3 {[%clk 0:02:55.5]} 4... Bh5 {[%clk 0:02:51.2]} 5. Bd3 {[%clk 0:02:52.6]} 5...
Nf6 {[%clk 0:02:49.2]} 6. O-O {[%clk 0:02:51.8]} 6... e6 {[%clk 0:02:49.1]} 7.
Re1 {[%clk 0:02:51]} 7... Be7 {[%clk 0:02:48.3]} 8. Nbd2 {[%clk 0:02:51.1]} 8...
d5 {[%clk 0:02:48.1]} 9. e5 {[%clk 0:02:50.9]} 9... Nfd7 {[%clk 0:02:47.6]} 10.
Nf1 {[%clk 0:02:50.2]} 10... c5 {[%clk 0:02:46.7]} 11. c3 {[%clk 0:02:50.1]}
11... Nc6 {[%clk 0:02:46.5]} 12. Be3 {[%clk 0:02:49.5]} 12... Qb6 {[%clk
0:02:45.7]} 13. Ng3 {[%clk 0:02:47.1]} 13... Bg6 {[%clk 0:02:27]} 14. Rb1 {[%clk
0:02:43.8]} 14... cxd4 {[%clk 0:02:21.2]} 15. cxd4 {[%clk 0:02:42]} 15... Rc8
{[%clk 0:02:10]} 16. b4 {[%clk 0:02:33.7]} 16... Bxd3 {[%clk 0:01:56.1]} 17.
Qxd3 {[%clk 0:02:33]} 17... Nxb4 {[%clk 0:01:54.7]} 18. Qb3 {[%clk 0:02:17.3]}
18... Nc2 {[%clk 0:01:42.8]} 19. Rec1 {[%clk 0:02:09.5]} 19... Qxb3 {[%clk
0:01:34.2]} 20. Rxb3 {[%clk 0:02:03.5]} 20... Nb6 {[%clk 0:01:20.7]} 21. Rxb6
{[%clk 0:01:40]} 21... axb6 {[%clk 0:01:18.3]} 22. Ne1 {[%clk 0:01:40]} 22...
Kd7 {[%clk 0:01:07.6]} 23. Rxc2 {[%clk 0:01:21.4]} 23... Rxc2 {[%clk 0:01:05.8]}
24. Nxc2 {[%clk 0:01:21.6]} 24... Rc8 {[%clk 0:01:05.2]} 25. Ne1 {[%clk
0:01:13]} 25... Ra8 {[%clk 0:01:04.3]} 26. Ne2 {[%clk 0:01:03.1]} 26... Rxa2
{[%clk 0:01:02.4]} 27. Nc1 {[%clk 0:01:02.6]} 27... Ra1 {[%clk 0:00:58.5]} 28.
Nc2 {[%clk 0:01:01]} 28... Ra4 {[%clk 0:00:51.8]} 29. Kf1 {[%clk 0:00:50.1]}
29... b5 {[%clk 0:00:51.6]} 30. Ke2 {[%clk 0:00:48.8]} 30... b4 {[%clk
0:00:51.4]} 31. Nb3 {[%clk 0:00:48]} 31... Ra2 {[%clk 0:00:47.7]} 32. Kd3 {[%clk
0:00:47.4]} 32... b6 {[%clk 0:00:46.9]} 33. f4 {[%clk 0:00:44.5]} 33... g6
{[%clk 0:00:46]} 34. g4 {[%clk 0:00:44.2]} 34... h5 {[%clk 0:00:44.3]} 35. Bd2
{[%clk 0:00:41.4]} 35... Ra4 {[%clk 0:00:40.8]} 36. Be1 {[%clk 0:00:24]} 36...
hxg4 {[%clk 0:00:39.6]} 37. hxg4 {[%clk 0:00:24]} 37... Kc6 {[%clk 0:00:39.5]}
38. Bd2 {[%clk 0:00:17.2]} 38... Kb5 {[%clk 0:00:39]} 39. Be1 {[%clk 0:00:16.1]}
39... Ra8 {[%clk 0:00:37.4]} 40. Bd2 {[%clk 0:00:14.2]} 40... Rh8 {[%clk
0:00:36.2]} 41. f5 {[%clk 0:00:14.6]} 41... gxf5 {[%clk 0:00:32.7]} 42. gxf5
{[%clk 0:00:14.4]} 42... Rh3+ {[%clk 0:00:31.9]} 43. Ne3 {[%clk 0:00:13.1]}
43... Ka4 {[%clk 0:00:22.2]} 44. Kc2 {[%clk 0:00:11.4]} 44... Bg5 {[%clk
0:00:18.8]} 45. Nxd5 {[%clk 0:00:05.5]} 45... exd5 {[%clk 0:00:16.8]} 46. Bxg5
{[%clk 0:00:05.4]} 46... Rxb3 {[%clk 0:00:11.5]} 47. e6 {[%clk 0:00:04.9]} 47...
fxe6 {[%clk 0:00:07.4]} 48. fxe6 {[%clk 0:00:05.1]} 48... Rc3+ {[%clk
0:00:07.3]} 49. Kb2 {[%clk 0:00:04.8]} 49... Rc8 {[%clk 0:00:06.8]} 50. e7
{[%clk 0:00:04.2]} 50... b3 {[%clk 0:00:03.5]} 51. Bf6 {[%clk 0:00:02.2]} 51...
Re8 {[%clk 0:00:01.3]} 52. Bg5 {[%clk 0:00:01.2]} 52... Kb4 {[%clk 0:00:01.1]}
53. Bf6 {[%clk 0:00:01.7]} 1-0

[Event "*** Titled Tuesday Blitz"]
[Site "Chess.com"]
[Date "2020.11.10"]
[Round "1"]
[White "kingofthenil"]
[Black "Nara_Kh"]
[Result "1-0"]
[WhiteElo "2673"]
[BlackElo "2342"]
[TimeControl "180+1"]
[EndTime "10:08:10 PST"]
[Termination "kingofthenil won by resignation"]

1. e4 {[%clk 0:02:58.5]} 1... c5 {[%clk 0:03:00]} 2. d3 {[%clk 0:02:58.7]} 2...
Nc6 {[%clk 0:02:58.2]} 3. g3 {[%clk 0:02:58.8]} 3... g6 {[%clk 0:02:58.2]} 4.
Bg2 {[%clk 0:02:58.8]} 4... Bg7 {[%clk 0:02:58.4]} 5. f4 {[%clk 0:02:59]} 5...
d6 {[%clk 0:02:56.8]} 6. Nf3 {[%clk 0:02:59.4]} 6... e6 {[%clk 0:02:56.4]} 7.
O-O {[%clk 0:02:59.5]} 7... Nge7 {[%clk 0:02:56.5]} 8. c3 {[%clk 0:02:59.9]}
8... O-O {[%clk 0:02:53.3]} 9. Be3 {[%clk 0:02:59.9]} 9... b6 {[%clk 0:02:46.2]}
10. d4 {[%clk 0:02:59.6]} 10... Ba6 {[%clk 0:02:35.3]} 11. Re1 {[%clk
0:02:59.7]} 11... Qc7 {[%clk 0:02:34.3]} 12. Na3 {[%clk 0:02:57.1]} 12... Rfd8
{[%clk 0:02:30]} 13. Bf2 {[%clk 0:02:53.7]} 13... d5 {[%clk 0:02:15]} 14. e5
{[%clk 0:02:53]} 14... cxd4 {[%clk 0:02:11.5]} 15. cxd4 {[%clk 0:02:53.9]} 15...
Nb4 {[%clk 0:02:08.7]} 16. Re3 {[%clk 0:02:10.8]} 16... Rac8 {[%clk 0:01:52.1]}
17. Qa4 {[%clk 0:01:52.2]} 17... Nec6 {[%clk 0:01:38.4]} 18. Rc3 {[%clk
0:01:48.5]} 18... Qb7 {[%clk 0:01:28.5]} 19. Nb5 {[%clk 0:01:40.3]} 19... Bxb5
{[%clk 0:01:16]} 20. Qxb5 {[%clk 0:01:41.2]} 20... a6 {[%clk 0:01:16.3]} 21. Qe2
{[%clk 0:01:38.3]} 21... Ne7 {[%clk 0:01:05.4]} 22. Rxc8 {[%clk 0:01:25.2]}
22... Rxc8 {[%clk 0:01:03.9]} 23. a3 {[%clk 0:01:26.1]} 23... Nbc6 {[%clk
0:00:42.2]} 24. Rc1 {[%clk 0:01:23.9]} 24... Na5 {[%clk 0:00:42]} 25. Qd1 {[%clk
0:01:06.7]} 25... Nc4 {[%clk 0:00:30]} 26. Qe2 {[%clk 0:01:00.2]} 26... b5
{[%clk 0:00:26.3]} 27. Be1 {[%clk 0:01:00.1]} 27... Nf5 {[%clk 0:00:23.9]} 28.
Rc3 {[%clk 0:00:44.2]} 28... Qb6 {[%clk 0:00:20.4]} 29. Rd3 {[%clk 0:00:37]}
29... Bf8 {[%clk 0:00:17.9]} 30. g4 {[%clk 0:00:35.9]} 30... Ne7 {[%clk
0:00:17.3]} 31. Bf2 {[%clk 0:00:30.2]} 31... Nc6 {[%clk 0:00:17.1]} 32. f5
{[%clk 0:00:29.3]} 32... a5 {[%clk 0:00:15.4]} 33. h4 {[%clk 0:00:20.8]} 33...
b4 {[%clk 0:00:15]} 34. a4 {[%clk 0:00:20.1]} 34... b3 {[%clk 0:00:14.2]} 35. h5
{[%clk 0:00:19.7]} 35... Nb4 {[%clk 0:00:13.7]} 36. Rxb3 {[%clk 0:00:19.1]}
36... Qc6 {[%clk 0:00:13.4]} 37. Rc3 {[%clk 0:00:16.8]} 37... Qxa4 {[%clk
0:00:11.9]} 38. hxg6 {[%clk 0:00:13.8]} 38... hxg6 {[%clk 0:00:11.5]} 39. fxg6
{[%clk 0:00:14.7]} 39... fxg6 {[%clk 0:00:11.7]} 40. Ng5 {[%clk 0:00:15.3]}
40... Qd7 {[%clk 0:00:11]} 41. Rh3 {[%clk 0:00:13.8]} 41... Bg7 {[%clk
0:00:08.1]} 42. Nh7 {[%clk 0:00:11.9]} 42... Qf7 {[%clk 0:00:07.5]} 43. g5
{[%clk 0:00:11]} 43... Qf5 {[%clk 0:00:07.3]} 44. Nf6+ {[%clk 0:00:10.5]} 44...
Kf7 {[%clk 0:00:07.5]} 45. Rf3 {[%clk 0:00:10.3]} 45... Qb1+ {[%clk 0:00:07.4]}
46. Bf1 {[%clk 0:00:09.2]} 46... Rh8 {[%clk 0:00:06.7]} 47. Nxd5+ {[%clk
0:00:08.2]} 47... Ke8 {[%clk 0:00:07]} 48. Nxb4 {[%clk 0:00:08]} 48... axb4
{[%clk 0:00:07.3]} 49. Qxc4 {[%clk 0:00:08.1]} 49... Kd7 {[%clk 0:00:02.2]} 50.
Qb5+ {[%clk 0:00:07.8]} 50... Kc7 {[%clk 0:00:02.4]} 51. Rf7+ {[%clk 0:00:07.7]}
51... Kc8 {[%clk 0:00:02.2]} 52. Qb7+ {[%clk 0:00:06.5]} 1-0

[Event "*** Titled Tuesday Blitz"]
[Site "Chess.com"]
[Date "2020.11.10"]
[Round "1"]
[White "paulrusan"]
[Black "Sadykov_Ramil"]
[Result "0-1"]
[WhiteElo "2207"]
[BlackElo "2554"]
[TimeControl "180+1"]
[EndTime "10:08:10 PST"]
[Termination "Sadykov_Ramil won by checkmate"]

1. e4 {[%clk 0:03:00.8]} 1... c6 {[%clk 0:02:56.8]} 2. d4 {[%clk 0:02:59.9]}
2... d5 {[%clk 0:02:56.6]} 3. f3 {[%clk 0:03:00.1]} 3... g6 {[%clk 0:02:54.4]}
4. Nc3 {[%clk 0:02:59.5]} 4... Bg7 {[%clk 0:02:53]} 5. Be3 {[%clk 0:02:59.5]}
5... Qb6 {[%clk 0:02:42.6]} 6. a3 {[%clk 0:02:55.7]} 6... dxe4 {[%clk
0:02:24.2]} 7. fxe4 {[%clk 0:02:53.4]} 7... e5 {[%clk 0:02:24.7]} 8. Nf3 {[%clk
0:02:47]} 8... Bg4 {[%clk 0:02:22.8]} 9. Qd2 {[%clk 0:02:38.5]} 9... Qxb2 {[%clk
0:01:41.9]} 10. Rb1 {[%clk 0:02:35.4]} 10... Qxa3 {[%clk 0:01:41.9]} 11. Rxb7
{[%clk 0:02:15.2]} 11... Nd7 {[%clk 0:01:23.2]} 12. Bc4 {[%clk 0:02:08.6]} 12...
Bxf3 {[%clk 0:01:11.9]} 13. gxf3 {[%clk 0:02:07.1]} 13... Rd8 {[%clk 0:00:55.8]}
14. O-O {[%clk 0:01:56]} 14... exd4 {[%clk 0:00:38.3]} 15. Bxd4 {[%clk
0:01:53.6]} 15... Ne5 {[%clk 0:00:37.7]} 16. Bb3 {[%clk 0:01:10.9]} 16... Rxd4
{[%clk 0:00:31.5]} 17. Qxd4 {[%clk 0:01:09]} 17... Nxf3+ {[%clk 0:00:31.3]} 18.
Rxf3 {[%clk 0:01:07.8]} 18... Bxd4+ {[%clk 0:00:31.4]} 19. Kg2 {[%clk
0:01:07.4]} 19... Nh6 {[%clk 0:00:22.3]} 20. Rb8+ {[%clk 0:00:31.3]} 20... Kd7
{[%clk 0:00:16.3]} 21. Rxh8 {[%clk 0:00:25.3]} 21... Bxh8 {[%clk 0:00:16.1]} 22.
e5 {[%clk 0:00:22.9]} 22... Bxe5 {[%clk 0:00:15.1]} 23. Ne4 {[%clk 0:00:22.7]}
23... Qc1 {[%clk 0:00:13.8]} 24. Nc5+ {[%clk 0:00:20.1]} 24... Kd6 {[%clk
0:00:13.3]} 25. Nd3 {[%clk 0:00:20.5]} 25... Qd2+ {[%clk 0:00:11.4]} 26. Rf2
{[%clk 0:00:20.7]} 26... Qg5+ {[%clk 0:00:11.5]} 27. Kf1 {[%clk 0:00:20.8]}
27... Ng4 {[%clk 0:00:11.2]} 28. Re2 {[%clk 0:00:18]} 28... Nxh2+ {[%clk
0:00:10.2]} 29. Ke1 {[%clk 0:00:16.4]} 29... Bc3+ {[%clk 0:00:10.3]} 30. Kd1
{[%clk 0:00:15.5]} 30... Qg1+ {[%clk 0:00:10.7]} 31. Ne1 {[%clk 0:00:15.8]}
31... Bxe1 {[%clk 0:00:08.9]} 32. Rxe1 {[%clk 0:00:15.8]} 32... Qd4+ {[%clk
0:00:08.7]} 33. Kc1 {[%clk 0:00:14.7]} 33... Nf3 {[%clk 0:00:08.7]} 34. Rd1
{[%clk 0:00:13.9]} 34... f5 {[%clk 0:00:08.4]} 35. c3 {[%clk 0:00:12]} 35...
Qxd1+ {[%clk 0:00:06]} 36. Bxd1 {[%clk 0:00:12.1]} 36... Ne5 {[%clk 0:00:04.8]}
37. Kd2 {[%clk 0:00:12.1]} 37... g5 {[%clk 0:00:04.4]} 38. Ke3 {[%clk
0:00:12.3]} 38... c5 {[%clk 0:00:04.2]} 39. Be2 {[%clk 0:00:11.6]} 39... c4
{[%clk 0:00:04.1]} 40. Kd2 {[%clk 0:00:10.4]} 40... Kd5 {[%clk 0:00:03.8]} 41.
Ke3 {[%clk 0:00:10.6]} 41... h6 {[%clk 0:00:03.5]} 42. Bf1 {[%clk 0:00:09.9]}
42... f4+ {[%clk 0:00:02.8]} 43. Kd2 {[%clk 0:00:09.5]} 43... Ke4 {[%clk
0:00:03.4]} 44. Bg2+ {[%clk 0:00:07.7]} 44... f3 {[%clk 0:00:03.9]} 45. Bh1
{[%clk 0:00:07.8]} 45... g4 {[%clk 0:00:04.3]} 46. Ke1 {[%clk 0:00:06.4]} 46...
Ke3 {[%clk 0:00:04.7]} 47. Kf1 {[%clk 0:00:05.4]} 47... Nd3 {[%clk 0:00:04.9]}
48. Bxf3 {[%clk 0:00:04]} 48... Kxf3 {[%clk 0:00:04.5]} 49. Kg1 {[%clk
0:00:03.6]} 49... a5 {[%clk 0:00:05.1]} 50. Kh2 {[%clk 0:00:03.1]} 50... a4
{[%clk 0:00:06]} 51. Kg1 {[%clk 0:00:03.5]} 51... a3 {[%clk 0:00:06.9]} 52. Kh2
{[%clk 0:00:04.3]} 52... a2 {[%clk 0:00:07.8]} 53. Kg1 {[%clk 0:00:05.1]} 53...
a1=Q+ {[%clk 0:00:06.3]} 54. Kh2 {[%clk 0:00:06]} 54... Qb2+ {[%clk 0:00:06.5]}
55. Kh1 {[%clk 0:00:03.2]} 55... Qg2# {[%clk 0:00:07.4]} 0-1